fUSD/lending_fUSD_20240527
["ID","MTS","AMOUNT","RATE_DAILY","PERIOD"]
[328095476,1716850233326,-6449.96229837,0.00026906,2]
[328095477,1716850233335,-25346.81346449,0.00026906,2]
[328095478,1716850233345,-410.5352738,0.00026998,2]
[328095479,1716850233354,-158.54525026,0.00026998,2]
[328095480,1716850233363,-433.26102806,0.00026999,2]
[328095481,1716850233373,-4018.79216408,0.00027,2]
[328095482,1716850233383,-138698.24162154,0.00027,2]
[328095483,1716850233395,-1537.12,0.00027006,2]
[328095484,1716850233405,-167.0,0.00027032,2]
[328095485,1716850233415,-800.0,0.00027123,2]
[328095486,1716850233424,-800.0,0.00027123,2]
[328095487,1716850233433,-164.80146356,0.00027165,2]
[328095488,1716850233442,-152.65934856,0.00027294,2]
[328095489,1716850233451,-151.69477326,0.00027296,2]
[328095490,1716850233461,-805.74854483,0.0002739,2]
[328095491,1716850233470,-261.76,0.000274,2]
[328095492,1716850233481,-151.35091194,0.00027453,2]
[328095493,1716850233490,-151.35091194,0.00027584,2]
[328095494,1716850233500,-821.33497263,0.00027584,2]
[328095495,1716850233511,-154.82794819,0.0002759,2]
[328095496,1716850233520,-6449.96229831,0.00027616,2]
[328095497,1716850233531,-25346.81346448,0.00027616,2]
[328095498,1716850233541,-153.02525692,0.00027684,2]
[328095499,1716850233551,-800.0,0.00027753,2]
[328095500,1716850233561,-152.26919471,0.00027905,2]
[328095501,1716850233570,-154.82794819,0.00027921,2]
[328095502,1716850233580,-152.65934856,0.00028031,2]
[328095503,1716850233589,-800.0,0.00028055,2]
[328095504,1716850233600,-152.65934856,0.00028159,2]
[328095505,1716850233610,-594.92,0.00028179,2]
[328095506,1716850233619,-151.35091194,0.0002826,2]
[328095507,1716850233629,-153.87459488,0.00028265,2]
[328095508,1716850233639,-7500.0,0.00028295,2]
[328095509,1716850233649,-527.22313131,0.00028295,2]
[328095510,1716850233658,-6449.96229831,0.00028326,2]
[328095511,1716850233669,-25346.81346448,0.00028326,2]
[328095512,1716850233678,-167.0,0.00028372,2]
[328095513,1716850233688,-261.76,0.00028385,2]
[328095514,1716850233698,-98135.1459,0.00028395,2]
[328095515,1716850233707,-1000.0,0.00028395,2]
[328095516,1716850233717,-153.02525692,0.00028401,2]
[328095517,1716850233726,-151.35091194,0.00028429,2]
[328095518,1716850233736,-151.69477326,0.00028503,2]
[328095519,1716850233746,-152.65934856,0.00028585,2]
[328095520,1716850233755,-164.80146356,0.00028655,2]
[328095521,1716850233764,-152.65934856,0.0002893,2]
[328095522,1716850233774,-152.65934856,0.00028979,2]
[328095523,1716850233784,-151.35091194,0.00028989,2]
[328095524,1716850233793,-8644.24,0.00029009,2]
[328095525,1716850233803,-1763.72279873,0.00029009,2]
[328095526,1716850233816,-899.34720127,0.00029009,2]
[328095527,1716850233826,-2363.82,0.00029009,2]
[328095528,1716850233836,-6453.9929555,0.00029009,2]
[328095529,1716850233847,-1094.4670445,0.00029009,2]
[328095530,1716850233857,-1097.62,0.00029009,2]
[328095531,1716850233866,-151.35091194,0.00029009,2]
[328095532,1716850233876,-156.061984,0.00029032,2]
[328095533,1716850233885,-6449.96229831,0.00029036,2]
[328095534,1716850233894,-25346.81346448,0.00029036,2]
[328095535,1716850233903,-726.26,0.00029188,2]
[328095536,1716850233912,-164.80146356,0.00029267,2]
[328095537,1716850233924,-171.58625965,0.00029447,2]
[328095538,1716850233934,-151.35091194,0.00029455,2]
[328095539,1716850233943,-225.90663782,0.000295,3]
[328095540,1716850233953,-152.65934856,0.00029528,2]
[328095541,1716850233962,-152.65934856,0.00029657,2]
[328095542,1716850233972,-164.80146356,0.00029746,2]
[328095543,1716850233981,-6449.96229831,0.00029746,2]
[328095544,1716850233993,-23008.62480856,0.00029746,2]
[328095545,1716850234008,-928.96223306,0.00029746,2]
[328095546,1716850234021,-1409.22642286,0.00029746,2]
[328095547,1716850234031,-48.958605,0.00029746,2]
[328095548,1716850234048,-1033.7,0.00029746,2]
[328095549,1716850234059,-454.461395,0.00029746,2]
[328095550,1716850234069,-150.0,0.00029753,2]
[328095551,1716850234079,-150.0,0.00029753,2]
[328095552,1716850234089,-150.0,0.00029753,2]
[328095553,1716850234098,-150.0,0.00029753,2]
[328095554,1716850234107,-150.0,0.00029753,2]
[328095555,1716850234117,-150.0,0.00029753,2]
[328095556,1716850234126,-150.0,0.00029753,2]
[328095557,1716850234136,-150.0,0.00029753,2]
[328095558,1716850234146,-150.0,0.00029753,2]
[328095559,1716850234156,-150.0,0.00029753,2]
[328095560,1716850234167,-150.0,0.00029753,2]
[328095561,1716850234176,-150.0,0.00029753,2]
[328095562,1716850234186,-150.0,0.00029753,2]
[328095563,1716850234195,-150.0,0.00029753,2]
[328095564,1716850234204,-154.05201726,0.00029829,2]
[328095565,1716850234213,-151.69477326,0.00029873,2]
[328095566,1716850234223,-200.0,0.00029888,2]
[328095567,1716850234232,-500.0,0.00029888,2]
[328095568,1716850234241,-200.0,0.00029888,2]
[328095569,1716850234251,-155.7175088,0.00029982,2]
[328095570,1716850234260,-274.02746252,0.0003,12]
[328095571,1716850234269,-602.24999544,0.0003,2]
[328095572,1716850234278,-400.0,0.0003,2]
[328095573,1716850234287,-58.01638187,0.00030036,2]
[328095574,1716850234299,-94.29648618,0.00030036,2]
[328095575,1716850234308,-1579.4007788,0.00030036,2]
[328095576,1716850234320,-346.53616094,0.00030036,2]
[328095577,1716850234331,-13640.54095496,0.00030036,2]
[328095578,1716850234342,-425.88796561,0.00030036,2]
[328095579,1716850234354,-697.84374107,0.00030036,2]
[328095580,1716850234363,-2234.30339274,0.00030036,2]
[328095581,1716850234372,-157.052807,0.00030048,36]
[328095582,1716850234382,-157.052807,0.00030098,34]
[328095583,1716850234391,-487.0,0.000301,14]
[328095584,1716850234400,-344.0,0.000301,2]
[328095585,1716850234409,-150.0,0.000301,2]
[328095586,1716850234420,-150.0,0.000301,6]
[328095587,1716850234431,-150.0,0.000301,6]
[328095588,1716850234440,-158.69869678,0.000301,2]
[328095589,1716850234450,-261.76,0.000301,2]
[328095590,1716850234459,-22706.83455213,0.0003011,2]
[328095591,1716850234479,-60040.15044307,0.0003011,2]
[328095592,1716850234488,-7662.0512629,0.0003011,2]
[328095593,1716850234497,-151.18,0.00030115,2]
[328095594,1716850234507,-261.76,0.00030115,2]
[328095595,1716850234516,-208.37659574,0.00030116,2]
[328095596,1716850234525,-5874.5069088,0.00030116,2]
[328095597,1716850234536,-1031.92508,0.00030117,2]
[328095598,1716850234545,-5000.0,0.00030122,7]
[328095599,1716850234555,-155.0,0.00030122,4]
[328095600,1716850234564,-337.0,0.00030123,5]
[328095601,1716850234573,-364.27737293,0.00030123,4]
[328095602,1716850234583,-312.43037364,0.00030123,4]
[328095603,1716850234593,-155.20563374,0.00030123,4]
[328095604,1716850234602,-208.57383812,0.00030123,4]
[328095605,1716850234611,-156.80431968,0.00030123,4]
[328095606,1716850234621,-155.20994914,0.00030123,4]
[328095607,1716850234631,-354.22479058,0.00030123,4]
[328095608,1716850234642,-155.0,0.00030123,4]
[328095609,1716850234653,-293.14644748,0.00030123,4]
[328095610,1716850234663,-619.31575855,0.00030124,4]
[328095611,1716850234673,-155.0,0.00030124,4]
[328095612,1716850234682,-245304.5499048,0.00030125,3]
[328095613,1716850234691,-151.0,0.00030125,7]
[328095614,1716850234700,-151.0,0.00030125,7]
[328095615,1716850234709,-151.0,0.00030125,7]
[328095616,1716850234721,-151.0,0.00030125,7]
[328095617,1716850234730,-151.0,0.00030125,7]
[328095618,1716850234741,-151.0,0.00030125,7]
[328095619,1716850234752,-151.0,0.00030125,7]
[328095620,1716850234762,-151.0,0.00030125,7]
[328095621,1716850234772,-151.0,0.00030125,7]
[328095622,1716850234781,-151.0,0.00030125,7]
[328095623,1716850234790,-151.0,0.00030125,7]
[328095624,1716850234799,-151.0,0.00030125,7]
[328095625,1716850234808,-151.0,0.00030125,7]
[328095626,1716850234818,-151.0,0.00030125,7]
[328095627,1716850234828,-151.0,0.00030125,7]
[328095628,1716850234838,-151.0,0.00030125,7]
[328095629,1716850234847,-151.0,0.00030125,7]
[328095630,1716850234858,-151.0,0.00030125,7]
[328095631,1716850234867,-151.0,0.00030125,7]
[328095632,1716850234878,-151.0,0.00030125,7]
[328095633,1716850234888,-151.0,0.00030125,7]
[328095634,1716850234897,-151.0,0.00030125,7]
[328095635,1716850234907,-151.0,0.00030125,7]
[328095636,1716850234918,-151.0,0.00030125,7]
[328095637,1716850234927,-151.18,0.00030126,2]
[328095638,1716850234936,-261.76,0.00030126,2]
[328095639,1716850234946,-158.69869678,0.00030126,2]
[328095640,1716850234955,-158.69869678,0.00030126,2]
[328095641,1716850234965,-2156.26623017,0.00030127,2]
[328095642,1716850234976,-408.75323981,0.00030127,2]
[328095643,1716850234987,-6968.55709012,0.00030127,2]
[328095644,1716850235003,-1648.0969788,0.00030127,2]
[328095645,1716850235012,-157.0,0.0003013,19]
[328095646,1716850235021,-154.05201726,0.0003013,7]
[328095647,1716850235031,-4133.45155852,0.00030134,4]
[328095648,1716850235041,-256.59095034,0.00030135,4]
[328095649,1716850235050,-150.0,0.00030135,10]
[328095650,1716850235060,-150.0,0.00030135,10]
[328095651,1716850235072,-150.0,0.00030135,10]
[328095652,1716850235081,-150.0,0.00030135,10]
[328095653,1716850235090,-150.0,0.00030135,10]
[328095654,1716850235100,-150.0,0.00030135,10]
[328095655,1716850235109,-150.0,0.00030135,10]
[328095656,1716850235118,-267.06365256,0.00030135,10]
[328095657,1716850235127,-150.0,0.00030135,7]
[328095658,1716850235136,-3904.89684488,0.00030135,3]
[328095659,1716850235148,-1275.75232492,0.00030135,3]
[328095660,1716850235159,-619.39292166,0.00030135,3]
[328095661,1716850235171,-994.53502422,0.00030135,3]
[328095662,1716850235182,-91011.1790288,0.00030135,3]
[328095663,1716850235193,-49347.91675046,0.00030135,3]
[328095664,1716850235204,-6393.22799159,0.00030135,3]
[328095665,1716850235215,-1501.57922295,0.00030135,3]
[328095666,1716850235227,-4121.07153573,0.00030135,3]
[328095667,1716850235238,-10781.89455129,0.00030135,3]
[328095668,1716850235249,-903.55095595,0.00030135,3]
[328095669,1716850235260,-518.40021227,0.00030135,3]
[328095670,1716850235271,-261.15578167,0.00030135,3]
[328095671,1716850235282,-13935.23498772,0.00030135,3]
[328095672,1716850235293,-5615.33786295,0.00030135,3]
[328095673,1716850235304,-1181.42468244,0.00030135,3]
[328095674,1716850235320,-818.0,0.00030135,3]
[328095675,1716850235331,-430.0056,0.00030135,3]
[328095676,1716850235343,-2236.40774336,0.00030135,3]
[328095677,1716850235354,-547.43728168,0.00030135,3]
[328095678,1716850235365,-1421.18809713,0.00030135,3]
[328095679,1716850235376,-558.15546194,0.00030135,3]
[328095680,1716850235387,-1266.60175907,0.00030135,3]
[328095695,1716850241332,-151.0,0.00030125,7]
[328095697,1716850241342,-629.00500001,0.00030135,11]
[328095719,1716850242399,-500.0,0.00030135,11]
[328095744,1716850243182,-8918.570866,0.00030135,11]
[328095746,1716850243193,-892.99999995,0.00030135,11]
[328095758,1716850243319,-698.23368,0.00030135,11]
[328095759,1716850243330,-2193.903841,0.00030135,11]
[328095760,1716850243460,-853.17330761,0.00030135,11]
[328095778,1716850246285,-103849.63108864,0.00030135,11]
[328095779,1716850246295,-298.0,0.00030135,5]
[328095780,1716850246304,-609120.34623426,0.00030135,3]
[328095781,1716850246438,-187.41812084,0.00030124,4]
[328095782,1716850246448,-2550.53219726,0.00030135,3]
[328095805,1716850848097,210.02,0.00024799,120]
[328095816,1716851432221,-208.92817089,0.00013343,2]
[328095820,1716851432230,-99.21191458,0.00013344,2]
[328095826,1716851432242,-55.78808542,0.00013344,2]
[328095829,1716851432251,-155.0,0.00013345,2]
[328095832,1716851432260,-2932.09283806,0.00013348,2]
[328095836,1716851432379,-79.79651471,0.00013348,2]
[328095837,1716851432389,-482.63893067,0.00013349,2]
[328095838,1716851432400,-1266.7972655,0.00013349,2]
[328095839,1716851432411,-3820.57679936,0.00013349,2]
[328095840,1716851432420,-163.61730037,0.00013353,2]
[328095841,1716851432429,-150.0,0.00013481,2]
[328095842,1716851432439,-150.0,0.00013481,2]
[328095843,1716851432451,-433.71844474,0.00013482,2]
[328095844,1716851432464,-164.0,0.00013973,2]
[328095845,1716851432473,-210.0,0.00014829,2]
[328095846,1716851432482,-155.0,0.00016287,2]
[328095847,1716851432492,-499.99,0.00016288,2]
[328095848,1716851432502,-368.64016969,0.00017534,2]
[328095849,1716851432513,-261.26028073,0.00017534,2]
[328095850,1716851432524,-250.61954958,0.00017534,2]
[328095851,1716851432536,-150.99,0.00017808,2]
[328095852,1716851432547,-779.77,0.00022519,2]
[328095853,1716851432556,-419.31393259,0.000237,3]
[328095854,1716851432568,-3464.68606741,0.000237,3]
[328095855,1716851432577,-832.0,0.000237,3]
[328095856,1716851432587,-727.22,0.00024256,2]
[328095857,1716851432597,-113.62621773,0.00024473,2]
[328095858,1716851432609,-39.39903919,0.00024473,2]
[328095859,1716851432618,-254.88619318,0.0002457,2]
[328095860,1716851432628,-155.13377518,0.00024606,2]
[328095861,1716851432638,-231.42738838,0.00024632,2]
[328095862,1716851432650,-1768.57261162,0.00024632,2]
[328095863,1716851432660,-222.58682524,0.0002465,2]
[328095864,1716851432669,-157.98698046,0.00024744,2]
[328095865,1716851432678,-155.13377518,0.00024765,2]
[328095868,1716851432687,-370.67,0.00024774,2]
[328095870,1716851432696,-107.55983605,0.00024779,2]
[328095873,1716851432720,-53.29717901,0.00024779,2]
[328095875,1716851432730,-779.77,0.00024783,2]
[328095877,1716851432738,-42.53210074,0.00024784,2]
[328095879,1716851432750,-207.46789926,0.00024784,2]
[328095881,1716851432759,-186.25251178,0.00024793,2]
[328095883,1716851432768,-407.64513664,0.00024799,2]
[328095896,1716851438250,-2.48347002,0.00024799,2]
[328095898,1716851438260,-449.09517312,0.0002482,2]
[328095909,1716851438412,-524.18265939,0.0002482,2]
[328095910,1716851438424,-330.2694009,0.0002482,2]
[328095911,1716851438436,-3638.90769307,0.0002482,2]
[328095912,1716851438450,-18947.54507352,0.0002482,2]
[328095913,1716851438460,-250.0,0.00024824,2]
[328095914,1716851438470,-244.65,0.00024835,2]
[328095918,1716851438707,-157.98698046,0.00024873,2]
[328095921,1716851438733,-250.0,0.00024879,2]
[328095923,1716851438743,-2496.73043737,0.00024894,2]
[328095925,1716851438756,-1340.26476761,0.00024894,2]
[328095928,1716851438768,-1258.28539142,0.00024894,2]
[328095930,1716851438779,-254.99999,0.00024894,2]
[328095935,1716851438816,-611.56751101,0.00024894,2]
[328095937,1716851438828,-1992.74934569,0.00024894,2]
[328095939,1716851438840,-282.59523092,0.00024894,2]
[328095941,1716851438851,-683.175201,0.00024894,2]
[328095944,1716851438862,-302.52178472,0.00024894,2]
[328096266,1716851442052,-1782.2914389,0.00024894,2]
[328096267,1716851442063,-186.25251178,0.00024927,2]
[328096268,1716851442072,-153.02525692,0.00024944,2]
[328096269,1716851442082,-779.17,0.00024978,2]
[328096270,1716851442092,-306.97,0.00024978,2]
[328096271,1716851442101,-222.58682524,0.0002499,2]
[328096272,1716851442111,-1050.0,0.00025,2]
[328096273,1716851442120,-1273.2251464,0.00025,2]
[328096274,1716851442129,-166.91,0.00025049,2]
[328096275,1716851442138,-155.13377518,0.00025099,2]
[328096276,1716851442147,-159.16330459,0.0002513,2]
[328096277,1716851442156,-337.03,0.00025205,2]
[328096278,1716851442165,-153.3330513,0.0002521,2]
[328096279,1716851442175,-155.13377518,0.00025219,2]
[328096280,1716851442184,-166.91,0.00025235,2]
[328096281,1716851442193,-186.25251178,0.00025328,2]
[328096282,1716851442202,-166.91,0.00025422,2]
[328096283,1716851442211,-155.13377518,0.0002549,2]
[328096284,1716851442221,-155.13377518,0.00025527,2]
[328096285,1716851442231,-166.91,0.00025608,2]
[328096286,1716851442241,-222.58682524,0.00025619,2]
[328096287,1716851442251,-167.0,0.00025683,2]
[328096288,1716851442260,-154.06640758,0.00025716,2]
[328096289,1716851442269,-166.91,0.00025795,2]
[328096290,1716851442279,-222.58682524,0.0002582,2]
[328096291,1716851442288,-152.33518528,0.00025879,2]
[328096292,1716851442298,-153.51016745,0.00025899,2]
[328096293,1716851442307,-166.91,0.00025981,2]
[328096294,1716851442317,-154.06640758,0.00026038,2]
[328096295,1716851442327,-186.25251178,0.00026081,2]
[328096296,1716851442336,-163.36,0.00026096,2]
[328096297,1716851442346,-166.91,0.00026168,2]
[328096298,1716851442355,-153.51016745,0.00026202,2]
[328096299,1716851442365,-157.98698046,0.00026217,2]
[328096300,1716851442374,-166.91,0.00026354,2]
[328096301,1716851442384,-222.58682524,0.00026356,2]
[328096302,1716851442394,-222.58682524,0.00026516,2]
[328096303,1716851442404,-160.09991446,0.00026521,2]
[328096304,1716851442414,-157.98698046,0.00026587,2]
[328096305,1716851442423,-156.24709475,0.00026606,2]
[328096306,1716851442433,-152.33518528,0.00026615,2]
[328096307,1716851442443,-152.33518528,0.00026653,2]
[328096308,1716851442454,-222.58682524,0.00026768,2]
[328096309,1716851442466,-222.58682524,0.00026798,2]
[328096310,1716851442475,-222.58682524,0.00026845,2]
[328096311,1716851442485,-180.0,0.00026986,2]
[328096312,1716851442495,-727.22,0.00026995,2]
[328096313,1716851442505,-1100.0,0.00027,2]
[328096314,1716851442515,-4018.79216408,0.00027,2]
[328096315,1716851442525,-779.77,0.00027047,2]
[328096316,1716851442535,-152.33518528,0.00027073,2]
[328096317,1716851442544,-155.13377518,0.00027125,2]
[328096318,1716851442554,-155.04441625,0.0002714,2]
[328096319,1716851442564,-222.58682524,0.00027152,2]
[328096320,1716851442574,-153.24318817,0.00027181,2]
[328096321,1716851442584,-155.04441625,0.00027229,2]
[328096322,1716851442593,-157.98698046,0.00027235,2]
[328096323,1716851442602,-157.53116754,0.00027242,2]
[328096324,1716851442612,-805.74854483,0.0002739,2]
[328096325,1716851442621,-222.58682524,0.00027517,2]
[328096326,1716851442631,-153.51016745,0.00027595,2]
[328096327,1716851442640,-152.33518528,0.00027629,2]
[328096328,1716851442650,-157.98698046,0.00027631,2]
[328096329,1716851442660,-157.98698046,0.00027761,2]
[328096330,1716851442669,-153.51016745,0.00027847,2]
[328096331,1716851442679,-152.90544729,0.00027868,2]
[328096332,1716851442689,-222.58682524,0.0002789,2]
[328096333,1716851442699,-155.13377518,0.00028032,2]
[328096334,1716851442708,-779.17,0.00028101,2]
[328096335,1716851442719,-152.33518528,0.00028217,2]
[328096336,1716851442729,-222.58682524,0.00028528,2]
[328096337,1716851442739,-186.25251178,0.00028611,2]
[328096338,1716851442748,-552.85555291,0.00028627,2]
[328096339,1716851442758,-157.98698046,0.00028798,2]
[328096340,1716851442767,-2250.0,0.000288,2]
[328096341,1716851442777,-157.98698046,0.00028853,2]
[328096342,1716851442787,-166.66666668,0.00028885,2]
[328096343,1716851442796,-186.25251178,0.00028895,2]
[328096344,1716851442806,-4566.25425951,0.00028934,2]
[328096345,1716851442815,-1150.0,0.00029,2]
[328096346,1716851442825,-222.58682524,0.00029035,2]
[328096347,1716851442835,-157.98698046,0.00029147,2]
[328096348,1716851442845,-155.13377518,0.00029159,2]
[328096349,1716851442855,-157.98698046,0.00029167,2]
[328096350,1716851442864,-159.16330459,0.00029225,2]
[328096351,1716851442874,-159.16330461,0.00029265,2]
[328096352,1716851442884,-779.77,0.00029311,2]
[328096353,1716851442894,-186.25251178,0.00029327,2]
[328096354,1716851442903,-157.98698046,0.00029411,2]
[328096355,1716851442913,-500.0,0.00029442,2]
[328096356,1716851442922,-225.69631253,0.000295,3]
[328096357,1716851442932,-927.24854719,0.00029529,2]
[328096358,1716851442941,-157.98698046,0.0002966,2]
[328096359,1716851442951,-222.58682524,0.00029723,2]
[328096360,1716851442960,-727.22,0.00029735,2]
[328096361,1716851442970,-416.12,0.00029753,2]
[328096362,1716851442980,-934.01,0.00029753,2]
[328096363,1716851442990,-155.13377518,0.00029758,2]
[328096364,1716851442999,-1597.0,0.000298,2]
[328096365,1716851443009,-252.64508453,0.00029832,2]
[328096366,1716851443019,-200.0,0.00029885,2]
[328096367,1716851443029,-500.0,0.00029885,2]
[328096368,1716851443039,-200.0,0.00029885,2]
[328096369,1716851443049,-155.13377518,0.000299,2]
[328096370,1716851443059,-1000.0,0.000299,2]
[328096371,1716851443069,-167.0,0.00029921,2]
[328096372,1716851443079,-330.0,0.00029984,5]
[328096373,1716851443088,-20522.85,0.0003,2]
[328096374,1716851443097,-882.67288797,0.00030026,2]
[328096375,1716851443106,-157.18762496,0.00030026,2]
[328096376,1716851443116,-2068.83014874,0.00030026,2]
[328096378,1716851443126,-154.12259817,0.00030026,2]
[328096380,1716851443134,-718.66810106,0.00030032,2]
[328096382,1716851443144,-695.3295,0.00030032,2]
[328096384,1716851443153,-7500.0,0.00030032,2]
[328096386,1716851443163,-3366.8546,0.00030032,2]
[328096387,1716851443172,-163.57463032,0.00030033,2]
[328096389,1716851443182,-18365.20521452,0.00030033,2]
[328096391,1716851443191,-328.04994833,0.00030033,2]
[328096392,1716851443200,-1000.0,0.00030036,2]
[328096393,1716851443209,-257.207,0.00030036,2]
[328096394,1716851443219,-2930.76809104,0.00030036,2]
[328096395,1716851443228,-458.47536986,0.00030036,2]
[328096396,1716851443238,-164.45040786,0.00030036,2]
[328096397,1716851443247,-749.15447112,0.00030036,2]
[328096398,1716851443256,-192.38607732,0.00030036,2]
[328096399,1716851443266,-157.052807,0.00030048,34]
[328096400,1716851443275,-654.45823754,0.0003007,2]
[328096401,1716851443285,-380.70037141,0.00030072,2]
[328096402,1716851443294,-4685.897,0.0003008,7]
[328096403,1716851443303,-3999.27010428,0.0003008,5]
[328096404,1716851443313,-157.052807,0.00030098,36]
[328096405,1716851443323,-160.0,0.000301,2]
[328096406,1716851443332,-487.0,0.000301,14]
[328096407,1716851443341,-344.0,0.000301,2]
[328096408,1716851443351,-150.0,0.000301,2]
[328096409,1716851443361,-150.0,0.000301,6]
[328096410,1716851443371,-150.0,0.000301,6]
[328096411,1716851443380,-386.53,0.0003011,2]
[328096412,1716851443389,-60872.1884392,0.0003012,2]
[328096413,1716851443399,-5110.8150101,0.0003012,2]
[328096414,1716851443408,-151.07,0.00030123,2]
[328096415,1716851443418,-151.07,0.00030123,2]
[328096416,1716851443427,-151.07,0.00030123,2]
[328096417,1716851443436,-151.07,0.00030123,2]
[328096418,1716851443446,-151.07,0.00030123,2]
[328096419,1716851443459,-151.07,0.00030123,2]
[328096420,1716851443468,-151.07,0.00030123,2]
[328096421,1716851443478,-151.07,0.00030123,2]
[328096422,1716851443488,-151.07,0.00030123,2]
[328096423,1716851443499,-151.07,0.00030123,2]
[328096424,1716851443508,-386.53,0.00030123,2]
[328096425,1716851443518,-386.53,0.00030123,2]
[328096426,1716851443527,-386.53,0.00030123,2]
[328096427,1716851443541,-386.53,0.00030123,2]
[328096428,1716851443551,-386.53,0.00030123,2]
[328096429,1716851443560,-386.53,0.00030123,2]
[328096430,1716851443569,-386.53,0.00030123,2]
[328096431,1716851443578,-386.53,0.00030123,2]
[328096432,1716851443589,-386.53,0.00030123,2]
[328096433,1716851443599,-151.07,0.00030124,2]
[328096434,1716851443608,-151.07,0.00030124,2]
[328096435,1716851443617,-161.5392604,0.00030126,2]
[328096436,1716851443627,-2938.39934985,0.00030126,2]
[328096437,1716851443636,-151.0,0.00030127,2]
[328096438,1716851443645,-151.0,0.00030127,2]
[328096439,1716851443655,-151.0,0.00030127,2]
[328096440,1716851443664,-151.0,0.00030127,2]
[328096441,1716851443674,-151.0,0.00030127,2]
[328096442,1716851443684,-151.0,0.00030127,2]
[328096443,1716851443693,-191.0,0.00030127,2]
[328096444,1716851443704,-1359.93757,0.00030127,2]
[328096445,1716851443714,-63618.66023905,0.00030129,11]
[328096446,1716851443723,-300.0,0.00030129,7]
[328096447,1716851443733,-4119606.54134621,0.00030129,3]
[328096448,1716851443743,-156.00929946,0.0003013,4]
[328096449,1716851443752,-229.17922046,0.0003013,4]
[328096450,1716851443762,-155.50545843,0.0003013,4]
[328096451,1716851443772,-1227.04758271,0.0003013,4]
[328096452,1716851443781,-155.0,0.0003013,4]
[328096454,1716851443791,-244.40489581,0.0003013,4]
[328096456,1716851443801,-9156.94527158,0.0003013,4]
[328096457,1716851443811,-156.04573926,0.0003013,4]
[328096458,1716851443823,-346.52808544,0.0003013,2]
[328096459,1716851443834,-155.39472073,0.00030131,2]
[328096460,1716851443843,-167.92658219,0.00030132,4]
[328096461,1716851443855,-252.15468317,0.00030132,4]
[328096462,1716851443865,-207.51951624,0.00030132,4]
[328096463,1716851443876,-168.44065273,0.00030132,4]
[328096464,1716851443886,-155.0,0.00030132,4]
[328096465,1716851443896,-257.85125369,0.00030132,4]
[328096466,1716851443905,-685.99323766,0.00030132,4]
[328096467,1716851443915,-155.21388189,0.00030132,4]
[328096468,1716851443925,-281.88330445,0.00030132,4]
[328096469,1716851443934,-155.3549062,0.00030132,4]
[328096470,1716851443944,-156.11215771,0.00030132,4]
[328096471,1716851443953,-228.06770619,0.00030132,4]
[328096472,1716851443962,-161.38766485,0.00030132,4]
[328096473,1716851443971,-155.0,0.00030132,4]
[328096474,1716851443980,-158.97058847,0.00030132,4]
[328096475,1716851443990,-298.45560487,0.00030132,4]
[328096476,1716851443999,-409.84120861,0.00030132,4]
[328096477,1716851444008,-155.0,0.00030132,4]
[328096478,1716851444017,-155.52154493,0.00030132,4]
[328096479,1716851444026,-312.15600045,0.00030132,2]
[328096480,1716851444035,-6772.86623355,0.00030132,4]
[328096481,1716851444044,-212.9813536,0.00030132,4]
[328096482,1716851444054,-156.34146276,0.00030132,4]
[328096483,1716851444063,-289.00377032,0.00030132,2]
[328096484,1716851444072,-10464.3632821,0.00030132,2]
[328096485,1716851444081,-6197.05684609,0.00030133,4]
[328096486,1716851444091,-1880193.14031498,0.00030133,2]
[328096487,1716851444100,-155.0,0.00030133,4]
[328096488,1716851444110,-155.0,0.00030133,4]
[328096489,1716851444119,-155.0,0.00030133,4]
[328096490,1716851444129,-240.98288585,0.00030133,4]
[328096491,1716851444138,-150.0,0.00030133,7]
[328096492,1716851444147,-1774.662058,0.00030134,4]
[328096493,1716851444156,-5189.03261963,0.00030134,4]